fUSD/lending_fUSD_20250105
["ID","MTS","AMOUNT","RATE_DAILY","PERIOD"]
[347764038,1736095871653,-500.0,0.00010684,2]
[347764039,1736095871664,-500.0,0.00010684,2]
[347764040,1736095871673,-156.995149,0.00010684,2]
[347764041,1736095871683,-500.0,0.00010684,2]
[347764042,1736095871693,-779.3,0.00010684,2]
[347764043,1736095871703,-607.64,0.00010684,2]
[347764044,1736095871714,-500.0,0.00010684,2]
[347764045,1736095871723,-500.0,0.00010684,2]
[347764046,1736095871732,-500.0,0.00010684,2]
[347764047,1736095871742,-500.0,0.00010684,2]
[347764048,1736095871751,-247.2,0.00010684,2]
[347764049,1736095871760,-500.0,0.00010684,2]
[347764050,1736095871770,-500.0,0.00010684,2]
[347764051,1736095871780,-500.0,0.00010684,2]
[347764052,1736095871791,-782.01,0.00010684,2]
[347764053,1736095871800,-178.23,0.00010684,2]
[347764054,1736095871813,-1567.9,0.00010684,2]
[347764055,1736095871823,-611.96,0.00010684,2]
[347764056,1736095871832,-542.45,0.00010684,2]
[347764057,1736095871841,-500.0,0.00010684,2]
[347764058,1736095871851,-565.0,0.00010684,2]
[347764059,1736095871860,-559.82,0.00010684,2]
[347764060,1736095871870,-500.0,0.00010684,2]
[347764061,1736095871880,-500.0,0.00010684,2]
[347764062,1736095871891,-500.0,0.00010684,2]
[347764063,1736095871902,-500.0,0.00010684,2]
[347764064,1736095871912,-550.86,0.00010684,2]
[347764065,1736095871921,-509.74,0.00010684,2]
[347764066,1736095871932,-500.0,0.00010684,2]
[347764067,1736095871944,-500.0,0.00010684,2]
[347764068,1736095871953,-500.0,0.00010684,2]
[347764069,1736095871963,-431.58,0.00010684,2]
[347764070,1736095871973,-500.0,0.00010684,2]
[347764071,1736095871983,-500.0,0.00010684,2]
[347764072,1736095871993,-500.0,0.00010684,2]
[347764073,1736095872003,-500.0,0.00010684,2]
[347764074,1736095872013,-500.0,0.00010684,2]
[347764075,1736095872023,-585.82,0.00010684,2]
[347764076,1736095872033,-500.0,0.00010684,2]
[347764077,1736095872043,-591.3,0.00010684,2]
[347764078,1736095872052,-500.0,0.00010684,2]
[347764079,1736095872063,-500.0,0.00010684,2]
[347764080,1736095872073,-581.38,0.00010684,2]
[347764081,1736095872082,-500.0,0.00010684,2]
[347764082,1736095872092,-500.0,0.00010684,2]
[347764083,1736095872102,-1279.95,0.00010684,2]
[347764084,1736095872112,-500.0,0.00010684,2]
[347764085,1736095872122,-1226.62,0.00010684,2]
[347764086,1736095872132,-500.0,0.00010684,2]
[347764087,1736095872144,-500.0,0.00010684,2]
[347764088,1736095872155,-643.04,0.00010684,2]
[347764089,1736095872166,-341.54,0.00010684,2]
[347764090,1736095872176,-876.2,0.00010684,2]
[347764091,1736095872186,-500.0,0.00010684,2]
[347764092,1736095872198,-885.2,0.00010684,2]
[347764093,1736095872210,-500.0,0.00010684,2]
[347764094,1736095872219,-571.68,0.00010684,2]
[347764095,1736095872229,-500.0,0.00010684,2]
[347764096,1736095872238,-500.0,0.00010684,2]
[347764097,1736095872248,-500.0,0.00010684,2]
[347764098,1736095872258,-565.85,0.00010684,2]
[347764099,1736095872268,-500.0,0.00010684,2]
[347764100,1736095872279,-500.0,0.00010684,2]
[347764101,1736095872288,-584.68,0.00010684,2]
[347764102,1736095872298,-500.0,0.00010684,2]
[347764103,1736095872308,-365.46,0.00010684,2]
[347764104,1736095872318,-581.74,0.00010684,2]
[347764105,1736095872327,-500.0,0.00010684,2]
[347764106,1736095872337,-500.0,0.00010684,2]
[347764107,1736095872346,-500.0,0.00010684,2]
[347764108,1736095872356,-613.09,0.00010684,2]
[347764109,1736095872366,-565.07,0.00010684,2]
[347764110,1736095872375,-893.15,0.00010684,2]
[347764111,1736095872385,-500.0,0.00010684,2]
[347764112,1736095872395,-500.0,0.00010684,2]
[347764113,1736095872405,-500.0,0.00010684,2]
[347764114,1736095872416,-500.0,0.00010684,2]
[347764115,1736095872428,-812.34,0.00010684,2]
[347764116,1736095872438,-500.0,0.00010684,2]
[347764117,1736095872448,-4529.45,0.00010684,2]
[347764118,1736095872458,-1847.31,0.00010684,2]
[347764119,1736095872468,-516.84,0.00010684,2]
[347764120,1736095872478,-1003.38,0.00010684,2]
[347764121,1736095872488,-716.19,0.00010684,2]
[347764122,1736095872498,-951.44,0.00010684,2]
[347764123,1736095872507,-1602.72,0.00010684,2]
[347764124,1736095872517,-500.0,0.00010684,2]
[347764125,1736095872527,-500.0,0.00010684,2]
[347764126,1736095872536,-671.8,0.00010684,2]
[347764127,1736095872546,-500.0,0.00010684,2]
[347764128,1736095872556,-500.0,0.00010684,2]
[347764129,1736095872567,-761.55,0.00010684,2]
[347764130,1736095872646,-500.0,0.00010684,2]
[347764131,1736095872656,-500.0,0.00010684,2]
[347764132,1736095872667,-729.82,0.00010684,2]
[347764133,1736095872676,-500.0,0.00010684,2]
[347764134,1736095872687,-500.0,0.00010684,2]
[347764135,1736095872698,-731.37,0.00010684,2]
[347764136,1736095872709,-540.7,0.00010684,2]
[347764137,1736095872718,-689.75,0.00010684,2]
[347764138,1736095872728,-500.0,0.00010684,2]
[347764139,1736095872737,-500.0,0.00010684,2]
[347764140,1736095872747,-500.0,0.00010684,2]
[347764141,1736095872756,-594.95621047,0.00010684,2]
[347764142,1736095872766,-500.0,0.00010684,2]
[347764143,1736095872777,-500.0,0.00010684,2]
[347764144,1736095872787,-500.0,0.00010684,2]
[347764145,1736095872797,-500.0,0.00010684,2]
[347764146,1736095872807,-500.0,0.00010684,2]
[347764147,1736095872822,-500.0,0.00010684,2]
[347764148,1736095872831,-2757.49,0.00010684,2]
[347764149,1736095872841,-611.9,0.00010684,2]
[347764150,1736095872851,-500.0,0.00010684,2]
[347764151,1736095872860,-733.8,0.00010684,2]
[347764152,1736095872871,-500.0,0.00010684,2]
[347764153,1736095872881,-941.3,0.00010684,2]
[347764154,1736095872892,-530.73,0.00010684,2]
[347764155,1736095872902,-500.0,0.00010684,2]
[347764156,1736095872911,-570.3,0.00010684,2]
[347764157,1736095872921,-266.51,0.00010684,2]
[347764158,1736095872931,-630.82,0.00010684,2]
[347764159,1736095872940,-500.0,0.00010684,2]
[347764160,1736095872950,-555.81,0.00010684,2]
[347764161,1736095872960,-500.0,0.00010684,2]
[347764162,1736095872970,-1398.91,0.00010684,2]
[347764163,1736095872979,-816.85,0.00010684,2]
[347764164,1736095872989,-500.0,0.00010684,2]
[347764165,1736095872999,-500.0,0.00010684,2]
[347764166,1736095873008,-1869.6,0.00010684,2]
[347764167,1736095873018,-500.0,0.00010684,2]
[347764168,1736095873033,-687.33,0.00010684,2]
[347764169,1736095873045,-1890.04,0.00010684,2]
[347764170,1736095873054,-500.0,0.00010684,2]
[347764171,1736095873063,-940.82,0.00010684,2]
[347764172,1736095873073,-1724.92,0.00010684,2]
[347764173,1736095873083,-958.63,0.00010684,2]
[347764174,1736095873096,-551.91,0.00010684,2]
[347764175,1736095873106,-635.28,0.00010684,2]
[347764176,1736095873115,-529.14740071,0.00010684,2]
[347764177,1736095873125,-2593.99,0.00010684,2]
[347764178,1736095873135,-500.0,0.00010684,2]
[347764179,1736095873145,-1073.58,0.00010684,2]
[347764180,1736095873155,-713.17,0.00010684,2]
[347764181,1736095873165,-3988.32,0.00010684,2]
[347764182,1736095873175,-555.29,0.00010684,2]
[347764183,1736095873184,-1082.22,0.00010684,2]
[347764184,1736095873194,-500.0,0.00010684,2]
[347764185,1736095873204,-548.37,0.00010684,2]
[347764186,1736095873214,-500.0,0.00010684,2]
[347764187,1736095873223,-676.35,0.00010684,2]
[347764188,1736095873233,-589.98,0.00010684,2]
[347764189,1736095873243,-1388.69,0.00010684,2]
[347764190,1736095873253,-2839.12,0.00010684,2]
[347764191,1736095873262,-500.0,0.00010684,2]
[347764192,1736095873272,-1013.43,0.00010684,2]
[347764193,1736095873282,-550.27,0.00010684,2]
[347764194,1736095873291,-707.78,0.00010684,2]
[347764195,1736095873301,-792.94,0.00010684,2]
[347764196,1736095873311,-1265.21,0.00010684,2]
[347764197,1736095873320,-1771.38,0.00010684,2]
[347764198,1736095873329,-500.0,0.00010684,2]
[347764199,1736095873338,-500.0,0.00010684,2]
[347764200,1736095873347,-3292.79,0.00010684,2]
[347764201,1736095873357,-646.75,0.00010684,2]
[347764202,1736095873366,-500.0,0.00010684,2]
[347764203,1736095873376,-687.89,0.00010684,2]
[347764204,1736095873386,-500.0,0.00010684,2]
[347764205,1736095873396,-973.9,0.00010684,2]
[347764206,1736095873406,-3830.35,0.00010684,2]
[347764207,1736095873416,-1219.44,0.00010684,2]
[347764208,1736095873426,-500.0,0.00010684,2]
[347764209,1736095873435,-583.19,0.00010684,2]
[347764210,1736095873445,-500.0,0.00010684,2]
[347764211,1736095873455,-500.0,0.00010684,2]
[347764212,1736095873464,-2047.69,0.00010684,2]
[347764213,1736095873474,-950.22,0.00010684,2]
[347764214,1736095873483,-950.22,0.00010684,2]
[347764215,1736095873493,-1533.34,0.00010684,2]
[347764216,1736095873503,-841.68,0.00010684,2]
[347764217,1736095873513,-500.0,0.00010684,2]
[347764218,1736095873522,-500.0,0.00010684,2]
[347764219,1736095873532,-1957.92,0.00010684,2]
[347764220,1736095873542,-5195.87,0.00010684,2]
[347764221,1736095873551,-635.6,0.00010684,2]
[347764222,1736095873561,-1161.3,0.00010684,2]
[347764223,1736095873570,-2256.91,0.00010684,2]
[347764224,1736095873580,-500.0,0.00010684,2]
[347764225,1736095873589,-1500.0,0.00010734,2]
[347764226,1736095873599,-10139.10217001,0.00010793,2]
[347764227,1736095873608,-708.0,0.00010839,2]
[347764228,1736095873618,-150.0,0.00010865,2]
[347764229,1736095873628,-150.0,0.00010873,2]
[347764230,1736095873637,-171.37383074,0.000109,2]
[347764231,1736095873647,-171.37383073,0.000109,2]
[347764232,1736095873656,-171.37383073,0.000109,2]
[347764233,1736095873666,-171.37383073,0.000109,2]
[347764234,1736095873676,-150.0,0.00010927,2]
[347764235,1736095873685,-171.37383073,0.0001093,2]
[347764236,1736095873695,-823.0,0.00010937,2]
[347764237,1736095873705,-1856.37,0.00010955,2]
[347764238,1736095873714,-264.38503871,0.00010955,2]
[347764239,1736095873724,-1176.54,0.00010955,2]
[347764240,1736095873734,-530.44,0.00010955,2]
[347764241,1736095873743,-2814.45,0.00010955,2]
[347764242,1736095873753,-769.38,0.00010955,2]
[347764243,1736095873763,-618.22127542,0.00010955,2]
[347764244,1736095873773,-675.21,0.00010955,2]
[347764245,1736095873783,-1561.87,0.00010955,2]
[347764246,1736095873793,-500.0,0.00010955,2]
[347764247,1736095873803,-1751.39,0.00010955,2]
[347764248,1736095873815,-576.37,0.00010955,2]
[347764249,1736095873824,-10139.10217001,0.00010955,2]
[347764250,1736095873834,-711.82,0.00010956,2]
[347764251,1736095873844,-777.32,0.00010956,2]
[347764252,1736095873855,-584.27,0.00010956,2]
[347764253,1736095873865,-1362.64,0.00010956,2]
[347764254,1736095873874,-933.23,0.00010956,2]
[347764255,1736095873884,-798.0,0.00010956,2]
[347764256,1736095873895,-397.29198173,0.00010956,2]
[347764257,1736095873905,-1406.53,0.00010956,2]
[347764258,1736095873915,-500.0,0.00010956,2]
[347764259,1736095873925,-2482.55,0.00010956,2]
[347764260,1736095873935,-516.95,0.00010956,2]
[347764261,1736095873945,-2577.14,0.00010956,2]
[347764262,1736095873955,-992.6,0.00010956,2]
[347764263,1736095873964,-500.0,0.00010956,2]
[347764264,1736095873974,-1643.78,0.00010956,2]
[347764265,1736095873984,-500.0,0.00010956,2]
[347764266,1736095873994,-4470.01,0.00010956,2]
[347764267,1736095874003,-1552.7,0.00010956,2]
[347764268,1736095874013,-645.32,0.00010956,2]
[347764269,1736095874023,-500.0,0.00010956,2]
[347764270,1736095874034,-800.4,0.00010956,2]
[347764271,1736095874043,-1519.25,0.00010956,2]
[347764272,1736095874053,-501.13,0.00010956,2]
[347764273,1736095874063,-1316.83,0.00010956,2]
[347764274,1736095874071,-1065.02017,0.00010956,2]
[347764275,1736095874082,-500.0,0.00010956,2]
[347764276,1736095874092,-2870.07,0.00010956,2]
[347764277,1736095874102,-2582.52,0.00010956,2]
[347764278,1736095874112,-500.0,0.00010956,2]
[347764279,1736095874121,-885.235852,0.00010956,2]
[347764280,1736095874131,-1296.0,0.00010956,2]
[347764281,1736095874140,-500.0,0.00010956,2]
[347764282,1736095874150,-559.66,0.00010956,2]
[347764283,1736095874160,-1263.86,0.00010956,2]
[347764284,1736095874169,-1451.88,0.00010956,2]
[347764285,1736095874179,-500.0,0.00010956,2]
[347764286,1736095874188,-662.17,0.00010956,2]
[347764287,1736095874198,-1117.81,0.00010956,2]
[347764288,1736095874208,-564.52,0.00010956,2]
[347764289,1736095874218,-465.54111917,0.00010956,2]
[347764290,1736095874227,-641.80521642,0.00010956,2]
[347764291,1736095874237,-883.45,0.00010956,2]
[347764292,1736095874247,-500.0,0.00010956,2]
[347764293,1736095874256,-500.0,0.00010956,2]
[347764294,1736095874266,-2939.35,0.00010956,2]
[347764295,1736095874276,-951.44,0.00010956,2]
[347764296,1736095874286,-500.0,0.00010956,2]
[347764297,1736095874295,-500.0,0.00010956,2]
[347764298,1736095874304,-500.0,0.00010956,2]
[347764299,1736095874314,-3218.91,0.00010957,2]
[347764300,1736095874323,-1847.93,0.00010957,2]
[347764301,1736095874332,-3406.35,0.00010957,2]
[347764302,1736095874342,-548.05,0.00010957,2]
[347764303,1736095874351,-3997.2,0.00010957,2]
[347764304,1736095874361,-697.66,0.00010957,2]
[347764305,1736095874371,-1194.12,0.00010958,2]
[347764306,1736095874380,-500.0,0.00010958,2]
[347764307,1736095874389,-500.0,0.00010958,2]
[347764308,1736095874399,-277.96361285,0.00010958,2]
[347764309,1736095874408,-500.0,0.00010958,2]
[347764310,1736095874417,-515.27,0.00010958,2]
[347764311,1736095874426,-500.0,0.00010958,2]
[347764312,1736095874436,-500.0,0.00010958,2]
[347764313,1736095874446,-529.63839235,0.00010958,2]
[347764314,1736095874455,-898.06,0.00010958,2]
[347764315,1736095874465,-872.3,0.00010958,2]
[347764316,1736095874475,-500.0,0.00010958,2]
[347764317,1736095874484,-500.0,0.00010958,2]
[347764318,1736095874494,-500.0,0.00010958,2]
[347764319,1736095874503,-1000.0,0.00010958,2]
[347764320,1736095874512,-500.0,0.00010958,2]
[347764321,1736095874522,-500.0,0.00010958,2]
[347764322,1736095874532,-664.88,0.00010958,2]
[347764323,1736095874542,-500.0,0.00010958,2]
[347764324,1736095874551,-797.13,0.00010958,2]
[347764325,1736095874561,-500.0,0.00010958,2]
[347764326,1736095874571,-500.0,0.00010958,2]
[347764327,1736095874580,-500.0,0.00010958,2]
[347764328,1736095874590,-568.18,0.00010958,2]
[347764329,1736095874599,-500.0,0.00010958,2]
[347764330,1736095874609,-500.0,0.00010958,2]
[347764331,1736095874619,-500.0,0.00010958,2]
[347764332,1736095874628,-500.0,0.00010958,2]
[347764333,1736095874637,-779.3,0.00010958,2]
[347764334,1736095874646,-607.64,0.00010958,2]
[347764335,1736095874656,-512.35,0.00010958,2]
[347764336,1736095874665,-500.0,0.00010958,2]
[347764337,1736095874675,-500.0,0.00010958,2]
[347764338,1736095874684,-500.0,0.00010958,2]
[347764339,1736095874693,-500.0,0.00010958,2]
[347764340,1736095874703,-500.0,0.00010958,2]
[347764341,1736095874712,-500.0,0.00010958,2]
[347764342,1736095874722,-782.01,0.00010958,2]
[347764343,1736095874731,-1567.9,0.00010958,2]
[347764344,1736095874741,-611.96,0.00010958,2]
[347764345,1736095874750,-542.45,0.00010958,2]
[347764346,1736095874760,-500.0,0.00010958,2]
[347764347,1736095874769,-565.0,0.00010958,2]
[347764348,1736095874779,-559.82,0.00010958,2]
[347764349,1736095874788,-500.0,0.00010958,2]
[347764350,1736095874799,-500.0,0.00010958,2]
[347764351,1736095874809,-500.0,0.00010958,2]
[347764352,1736095874820,-500.0,0.00010958,2]
[347764353,1736095874830,-550.86,0.00010958,2]
[347764354,1736095874839,-509.74,0.00010958,2]
[347764355,1736095874850,-500.0,0.00010958,2]
[347764356,1736095874860,-500.0,0.00010958,2]
[347764357,1736095874871,-500.0,0.00010958,2]
[347764358,1736095874880,-500.0,0.00010958,2]
[347764359,1736095874890,-500.0,0.00010958,2]
[347764360,1736095874900,-500.0,0.00010958,2]
[347764361,1736095874910,-500.0,0.00010958,2]
[347764362,1736095874920,-466.0313797,0.00010958,2]
[347764363,1736095874929,-1135.38,0.00010958,2]
[347764364,1736095874939,-585.82,0.00010958,2]
[347764365,1736095874948,-500.0,0.00010958,2]
[347764366,1736095874957,-591.3,0.00010958,2]
[347764367,1736095874967,-500.0,0.00010958,2]
[347764368,1736095874977,-500.0,0.00010958,2]
[347764369,1736095874987,-581.38,0.00010958,2]
[347764370,1736095874997,-500.0,0.00010958,2]
[347764371,1736095875008,-500.0,0.00010958,2]
[347764372,1736095875018,-1279.95,0.00010958,2]
[347764373,1736095875029,-500.0,0.00010958,2]
[347764374,1736095875038,-1226.62,0.00010958,2]
[347764375,1736095875049,-500.0,0.00010958,2]
[347764376,1736095875059,-309.30956528,0.00010958,2]
[347764377,1736095875069,-643.04,0.00010958,2]
[347764378,1736095875079,-876.2,0.00010958,2]
[347764379,1736095875089,-500.0,0.00010958,2]
[347764380,1736095875099,-885.2,0.00010958,2]
[347764381,1736095875109,-500.0,0.00010958,2]
[347764382,1736095875119,-571.68,0.00010958,2]
[347764383,1736095875131,-500.0,0.00010958,2]
[347764384,1736095875141,-500.0,0.00010958,2]
[347764385,1736095875151,-500.0,0.00010958,2]
[347764386,1736095875161,-565.85,0.00010958,2]
[347764387,1736095875171,-500.0,0.00010958,2]
[347764388,1736095875181,-500.0,0.00010958,2]
[347764389,1736095875191,-584.68,0.00010958,2]
[347764390,1736095875201,-500.0,0.00010958,2]
[347764391,1736095875211,-581.74,0.00010958,2]
[347764392,1736095875221,-500.0,0.00010958,2]
[347764393,1736095875231,-500.0,0.00010958,2]
[347764394,1736095875241,-500.0,0.00010958,2]
[347764395,1736095875251,-613.09,0.00010958,2]
[347764396,1736095875260,-565.07,0.00010958,2]
[347764397,1736095875270,-893.15,0.00010958,2]
[347764398,1736095875282,-500.0,0.00010958,2]
[347764399,1736095875292,-500.0,0.00010958,2]
[347764400,1736095875303,-500.0,0.00010958,2]
[347764401,1736095875313,-500.0,0.00010958,2]
[347764402,1736095875323,-812.34,0.00010958,2]
[347764403,1736095875333,-500.0,0.00010958,2]
[347764404,1736095875343,-4529.45,0.00010958,2]
[347764405,1736095875353,-1847.31,0.00010958,2]
[347764406,1736095875363,-516.84,0.00010958,2]
[347764407,1736095875373,-1003.38,0.00010958,2]
[347764408,1736095875383,-716.19,0.00010958,2]
[347764409,1736095875393,-951.44,0.00010958,2]
[347764410,1736095875403,-1602.72,0.00010958,2]
[347764411,1736095875413,-500.0,0.00010958,2]
[347764412,1736095875422,-574.62,0.00010958,2]
[347764413,1736095875432,-671.8,0.00010958,2]
[347764414,1736095875442,-500.0,0.00010958,2]
[347764415,1736095875452,-500.0,0.00010958,2]
[347764416,1736095875462,-500.0,0.00010958,2]
[347764417,1736095875472,-761.55,0.00010958,2]
[347764418,1736095875483,-500.0,0.00010958,2]
[347764419,1736095875493,-729.82,0.00010958,2]
[347764420,1736095875504,-500.0,0.00010958,2]
[347764421,1736095875514,-500.0,0.00010958,2]
[347764422,1736095875524,-731.37,0.00010958,2]
[347764423,1736095875537,-540.7,0.00010958,2]
[347764424,1736095875548,-689.75,0.00010958,2]
[347764425,1736095875558,-500.0,0.00010958,2]
[347764426,1736095875568,-500.0,0.00010958,2]
[347764427,1736095875578,-500.0,0.00010958,2]
[347764428,1736095875588,-500.0,0.00010958,2]
[347764429,1736095875598,-241.7,0.00010958,2]
[347764430,1736095875609,-500.0,0.00010958,2]
[347764431,1736095875619,-500.0,0.00010958,2]
[347764432,1736095875629,-481.21394882,0.00010958,2]
[347764433,1736095875639,-500.0,0.00010958,2]
[347764434,1736095875649,-2757.49,0.00010958,2]
[347764435,1736095875659,-611.9,0.00010958,2]
[347764436,1736095875670,-500.0,0.00010958,2]
[347764437,1736095875681,-733.8,0.00010958,2]
[347764438,1736095875693,-500.0,0.00010958,2]
[347764439,1736095875703,-941.3,0.00010958,2]
[347764440,1736095875714,-530.73,0.00010958,2]
[347764441,1736095875724,-387.9,0.00010958,2]
[347764442,1736095875734,-570.3,0.00010958,2]
[347764443,1736095875744,-500.0,0.00010958,2]
[347764444,1736095875754,-555.81,0.00010958,2]
[347764445,1736095875764,-500.0,0.00010958,2]
[347764446,1736095875774,-1398.91,0.00010958,2]
[347764447,1736095875786,-816.85,0.00010958,2]
[347764448,1736095875796,-500.0,0.00010958,2]
[347764449,1736095875806,-500.0,0.00010958,2]
[347764450,1736095875820,-1869.6,0.00010958,2]
[347764451,1736095875830,-500.0,0.00010958,2]
[347764452,1736095875839,-687.33,0.00010958,2]
[347764453,1736095875851,-1890.04,0.00010958,2]
[347764454,1736095875861,-500.0,0.00010958,2]
[347764455,1736095875871,-940.82,0.00010958,2]
[347764456,1736095875883,-1724.92,0.00010958,2]
[347764457,1736095875894,-958.63,0.00010958,2]
[347764458,1736095875904,-551.91,0.00010958,2]
[347764459,1736095875915,-635.28,0.00010958,2]
[347764460,1736095875926,-500.0,0.00010958,2]
[347764461,1736095875937,-2593.99,0.00010958,2]
[347764462,1736095875947,-1073.58,0.00010958,2]
[347764463,1736095875957,-713.17,0.00010958,2]
[347764464,1736095875967,-3988.32,0.00010958,2]
[347764465,1736095875978,-555.29,0.00010958,2]
[347764466,1736095875989,-500.0,0.00010958,2]
[347764467,1736095875999,-1082.22,0.00010958,2]
[347764468,1736095876009,-548.37,0.00010958,2]
[347764469,1736095876022,-500.0,0.00010958,2]
[347764470,1736095876031,-676.35,0.00010958,2]
[347764471,1736095876041,-589.98,0.00010958,2]
[347764472,1736095876051,-1388.69,0.00010958,2]
[347764473,1736095876060,-2839.12,0.00010958,2]
[347764474,1736095876070,-500.0,0.00010958,2]
[347764475,1736095876080,-1013.43,0.00010958,2]
[347764476,1736095876090,-550.27,0.00010958,2]
[347764477,1736095876100,-707.78,0.00010958,2]
[347764478,1736095876110,-792.94,0.00010958,2]
[347764479,1736095876120,-1265.21,0.00010958,2]
[347764480,1736095876130,-1771.38,0.00010958,2]
[347764481,1736095876140,-500.0,0.00010958,2]
[347764482,1736095876150,-500.0,0.00010958,2]
[347764483,1736095876160,-646.75,0.00010958,2]
[347764484,1736095876170,-3292.79,0.00010958,2]
[347764485,1736095876180,-500.0,0.00010958,2]
[347764486,1736095876190,-687.89,0.00010958,2]
[347764487,1736095876199,-464.12,0.00010958,2]
[347764488,1736095876209,-973.9,0.00010958,2]
[347764489,1736095876219,-1219.44,0.00010958,2]
[347764490,1736095876229,-500.0,0.00010958,2]
[347764491,1736095876239,-3830.35,0.00010958,2]
[347764492,1736095876249,-583.19,0.00010958,2]
[347764493,1736095876259,-500.0,0.00010958,2]
[347764494,1736095876269,-500.0,0.00010958,2]
[347764495,1736095876279,-2047.69,0.00010958,2]
[347764496,1736095876289,-950.22,0.00010958,2]
[347764497,1736095876299,-950.22,0.00010958,2]
[347764498,1736095876309,-1533.34,0.00010958,2]
[347764499,1736095876319,-7500.0,0.00010958,2]
[347764500,1736095876329,-7500.0,0.00010958,2]
[347764501,1736095876339,-7500.0,0.00010958,2]
[347764502,1736095876350,-7500.0,0.00010958,2]
[347764503,1736095876360,-7500.0,0.00010958,2]
[347764504,1736095876370,-841.68,0.00010958,2]
[347764505,1736095876380,-500.0,0.00010958,2]
[347764506,1736095876390,-500.0,0.00010958,2]
[347764507,1736095876400,-1957.92,0.00010958,2]
[347764508,1736095876410,-5195.87,0.00010958,2]
[347764509,1736095876420,-635.6,0.00010958,2]
[347764510,1736095876431,-1161.3,0.00010958,2]
[347764511,1736095876441,-2256.91,0.00010958,2]
[347764512,1736095876451,-500.0,0.00010958,2]
[347764513,1736095876461,-150.3,0.00010958,2]
[347764514,1736095876471,-1504.99,0.00010958,2]
[347764515,1736095876481,-150.0,0.00010959,2]
[347764516,1736095876491,-1500.0,0.00010973,2]
[347764517,1736095876501,-550.0,0.00011,2]
[347764518,1736095876511,-150.0,0.00011008,2]
[347764519,1736095876521,-150.0,0.00011014,2]
[347764520,1736095876533,-150.0,0.0001111,2]
[347764521,1736095876543,-10139.10217001,0.00011117,2]
[347764522,1736095876554,-167.69919103,0.00011127,2]
[347764523,1736095876565,-150.0,0.00011155,2]
[347764524,1736095876574,-150.0,0.00011166,2]
[347764525,1736095876584,-1856.37,0.00011229,2]
[347764526,1736095876595,-1176.54,0.00011229,2]
[347764527,1736095876605,-530.44,0.00011229,2]
[347764528,1736095876615,-2814.45,0.00011229,2]
[347764529,1736095876627,-769.38,0.00011229,2]
[347764530,1736095876638,-675.21,0.00011229,2]
[347764531,1736095876647,-1561.87,0.00011229,2]
[347764532,1736095876658,-500.0,0.00011229,2]
[347764533,1736095876668,-1751.39,0.00011229,2]
[347764534,1736095876678,-576.37,0.00011229,2]
[347764535,1736095876688,-711.82,0.0001123,2]
[347764536,1736095876699,-777.32,0.0001123,2]
[347764537,1736095876709,-584.27,0.0001123,2]